bitfinex-derivatives/quotes_BTCF0:USTF0_20241120
["timestamp","ask_amount","ask_price","bid_price","bid_amount"]
[1732076111340,0.3608,92120.0,92119.0,0.1821639]
[1732076111554,0.3608,92120.0,92119.0,0.0668039]
[1732076111856,0.3608,92120.0,92113.0,0.11536]
[1732076112040,0.054217,92115.0,92113.0,0.11536]
[1732076113448,0.0668039,92119.0,92112.0,0.054219]
[1732076113654,0.054218,92114.0,92112.0,0.054219]
[1732076113854,0.0621,92113.0,92112.0,0.054219]
[1732076114242,0.116319,92113.0,92109.0,0.11536]
[1732076114656,0.3608,92111.0,92109.0,0.11536]
[1732076114954,0.3608,92111.0,92109.0,0.16958]
[1732076115543,0.3608,92111.0,92109.0,0.05422]
[1732076115946,0.3608,92111.0,92109.0,0.16958]
[1732076117150,0.3608,92111.0,92109.0,0.05422]
[1732076117359,0.41502,92111.0,92109.0,0.16958]
[1732076117656,0.05422,92111.0,92109.0,0.16958]
[1732076118157,0.05422,92111.0,92109.0,0.05422]
[1732076120462,0.054223,92105.0,92103.0,0.1821639]
[1732076120657,0.0668039,92107.0,92098.0,0.1210309]
[1732076120849,0.0668039,92102.0,92092.0,0.05423]
[1732076121156,0.0668039,92102.0,92087.0,0.00162858]
[1732076121157,0.0668039,92093.0,92087.0,0.00162858]
[1732076121358,0.0668039,92092.0,92087.0,0.00162858]
[1732076121660,0.0668039,92088.0,92087.0,0.00162858]
[1732076121847,0.4276039,92088.0,92087.0,0.00162858]
[1732076122166,0.4276039,92088.0,92075.0,0.0051]
[1732076122167,0.054239,92078.0,92075.0,0.0051]
[1732076122343,0.67113686,92088.0,92071.0,0.0668039]
[1732076122344,0.054241,92074.0,92071.0,0.0668039]
[1732076122652,0.4276039,92077.0,92068.0,0.0668039]
[1732076122963,0.054243,92071.0,92069.0,0.0668039]
[1732076123457,0.3608,92077.0,92075.0,0.05424]
[1732076123650,0.3608,92077.0,92076.0,0.0668039]
[1732076124643,0.3608,92077.0,92075.0,0.05424]
[1732076125456,0.3608,92077.0,92067.0,0.10561122]
[1732076125655,0.05424,92076.0,92067.0,0.10561122]
[1732076126047,0.05424,92076.0,92070.0,0.054243]
[1732076126248,0.05424,92076.0,92067.0,0.10561122]
[1732076126545,0.05424,92076.0,92073.0,0.054242]
[1732076127277,0.3608,92077.0,92067.0,0.10561122]
[1732076127444,0.3608,92077.0,92074.0,0.054241]
[1732076129154,0.41504,92077.0,92074.0,0.054241]
[1732076130759,0.054241,92075.0,92068.0,0.054245]
[1732076131458,0.054241,92075.0,92069.0,0.054244]
[1732076132054,0.054241,92075.0,92070.0,0.054243]
[1732076132262,0.3608,92077.0,92075.0,0.05424]
[1732076135272,0.3608,92077.0,92069.0,0.054244]
[1732076136770,0.3608,92077.0,92066.0,0.11496]
[1732076136965,0.054241,92074.0,92070.0,0.054243]
[1732076138065,0.3608,92077.0,92070.0,0.054243]
[1732076138066,0.054242,92073.0,92070.0,0.054243]
[1732076140067,0.3608,92075.0,92072.0,0.054242]
[1732076140275,0.3608,92075.0,92073.0,0.054242]
[1732076140475,0.3608,92075.0,92074.0,0.10561122]
[1732076145270,0.3608,92075.0,92066.0,0.10561122]
[1732076145469,0.3608,92075.0,92058.0,0.10561122]
[1732076145470,0.05425,92060.0,92058.0,0.10561122]
[1732076145679,0.3608,92059.0,92058.0,0.10561122]
[1732076145881,0.3608,92059.0,92051.0,0.10561122]
[1732076146069,0.054251,92057.0,92051.0,0.10561122]
[1732076146273,0.3608,92059.0,92051.0,0.10561122]
[1732076146578,0.3608,92059.0,92058.0,0.10561122]
[1732076146778,0.3608,92059.0,92058.0,0.06685692]
[1732076147585,0.3608,92061.0,92059.0,0.05425]
[1732076147773,0.3608,92061.0,92060.0,0.06685692]
[1732076148576,0.3608,92061.0,92059.0,0.05425]
[1732076148788,0.3608,92061.0,92060.0,0.10564031]
[1732076150983,0.3608,92061.0,92060.0,0.21128062]
[1732076151175,0.3608,92061.0,92060.0,0.31048062]
[1732076151476,0.054239,92078.0,92073.0,0.054242]
[1732076151882,0.05424,92077.0,92073.0,0.054242]
[1732076152088,0.05424,92077.0,92074.0,0.054241]
[1732076152480,0.05424,92077.0,92075.0,0.054241]
[1732076153889,0.05424,92076.0,92072.0,0.10564031]
[1732076154096,0.04488942,92079.0,92072.0,0.10564031]
[1732076154387,0.04488942,92079.0,92075.0,0.05424]
[1732076154388,0.0311,92079.0,92075.0,0.05424]
[1732076156390,0.0311,92079.0,92072.0,0.10564031]
[1732076156589,0.00162954,92080.0,92079.0,0.054238]
[1732076156793,0.00162954,92080.0,92079.0,0.15987831]
[1732076158679,0.05586754,92080.0,92075.0,0.05424]
[1732076158891,0.05586754,92080.0,92076.0,0.05424]
[1732076159095,0.05586754,92080.0,92077.0,0.054239]
[1732076161393,0.00162954,92080.0,92077.0,0.054239]
[1732076161602,0.00162954,92080.0,92071.0,0.10564031]
[1732076161603,0.05424,92077.0,92071.0,0.10564031]
[1732076161904,0.3608,92077.0,92066.0,0.19357657]
[1732076162087,0.033,92076.0,92063.0,0.19357657]
[1732076162397,0.054247,92065.0,92059.0,0.05425]
[1732076162585,0.054247,92064.0,92059.0,0.05425]
[1732076162791,0.054248,92063.0,92059.0,0.05425]
[1732076162994,0.05425,92060.0,92058.0,0.19357657]
[1732076163594,0.05425,92060.0,92056.0,0.29921688]
[1732076164300,0.05425,92060.0,92056.0,0.31333478]
[1732076164694,0.05425,92060.0,92057.0,0.19357657]
[1732076165083,0.05425,92060.0,92056.0,0.11975821]
[1732076165288,0.05425,92060.0,92056.0,0.31333478]
[1732076165890,0.031,92065.0,92056.0,0.10564031]
[1732076166389,0.3608,92059.0,92052.0,0.0141207]
[1732076166594,0.054254,92053.0,92052.0,0.0141207]
[1732076167290,0.054256,92050.0,92048.0,0.00162952]
[1732076167698,0.0623,92049.0,92048.0,0.00162952]
[1732076170804,0.07661111,92049.0,92048.0,0.00162952]
[1732076175009,0.0313,92049.0,92048.0,0.00162952]
[1732076175205,0.3608,92051.0,92049.0,0.054255]
[1732076177797,0.054254,92053.0,92049.0,0.054255]
[1732076178206,0.054254,92053.0,92050.0,0.054255]
[1732076180635,0.3608,92059.0,92052.0,0.10564031]
[1732076180916,0.3608,92059.0,92057.0,0.054251]
[1732076181118,0.3608,92059.0,92052.0,0.10564031]
[1732076181119,0.054251,92058.0,92052.0,0.15989431]
[1732076181922,0.054251,92058.0,92053.0,0.054253]
[1732076183027,0.054251,92058.0,92054.0,0.054253]
[1732076183208,0.054251,92058.0,92052.0,0.10564031]
[1732076183209,0.054251,92058.0,92055.0,0.054252]
[1732076183610,0.054253,92055.0,92052.0,0.10564031]
[1732076183905,0.3608,92059.0,92054.0,0.054253]
[1732076184110,0.3608,92059.0,92055.0,0.054252]
[1732076184325,0.3608,92059.0,92056.0,0.054252]
[1732076184816,0.3608,92059.0,92058.0,0.06685886]
[1732076185320,0.054243,92072.0,92058.0,0.06685886]
[1732076185522,0.11408,92082.0,92069.0,0.06685886]
[1732076185720,0.054243,92071.0,92069.0,0.06685886]
[1732076186523,0.06685886,92071.0,92061.0,0.06685886]
[1732076186818,0.06685886,92071.0,92053.0,0.054253]
[1732076186819,0.054248,92062.0,92055.0,0.119959]
[1732076187020,0.054248,92062.0,92055.0,0.10565783]
[1732076188625,0.054249,92061.0,92055.0,0.10565783]
[1732076188823,0.0648,92070.0,92055.0,0.10565783]
[1732076189136,0.05425,92059.0,92055.0,0.10565783]
[1732076189310,0.0648,92070.0,92055.0,0.10565783]
[1732076189516,0.054253,92054.0,92053.0,0.19394099]
[1732076189911,0.054253,92054.0,92051.0,0.19394099]
[1732076190113,0.0316,92064.0,92051.0,0.19394099]
[1732076190417,0.0316,92064.0,92052.0,0.19394099]
[1732076191421,0.054253,92054.0,92052.0,0.19394099]
[1732076191729,0.054253,92054.0,92053.0,0.19394099]
[1732076192116,0.054253,92054.0,92047.0,0.10565783]
[1732076192311,0.054253,92054.0,92047.0,0.36319989]
[1732076192727,0.054253,92054.0,92049.0,0.054256]
[1732076193126,0.0316,92064.0,92053.0,0.19420473]
[1732076193325,0.0316,92064.0,92054.0,0.19420473]
[1732076193532,0.05425,92059.0,92054.0,0.19420473]
[1732076193829,0.054251,92057.0,92053.0,0.29986256]
[1732076194331,0.054252,92056.0,92054.0,0.19420473]
[1732076196324,0.054252,92056.0,92055.0,0.19420473]
[1732076197031,0.054252,92056.0,92053.0,0.10565783]
[1732076197032,0.054252,92056.0,92054.0,0.19420473]
[1732076197227,0.054252,92056.0,92053.0,0.10565783]
[1732076198325,0.054253,92055.0,92053.0,0.10565783]
[1732076201526,0.054253,92055.0,92053.0,0.29986256]
[1732076201837,0.054253,92055.0,92053.0,0.10565783]
[1732076202137,0.054253,92055.0,92053.0,0.29986256]
[1732076202334,0.054253,92055.0,92053.0,0.10565783]
[1732076202827,0.054253,92055.0,92053.0,0.29986256]
[1732076203941,0.054253,92055.0,92053.0,0.10565783]
[1732076204244,0.054254,92053.0,92049.0,0.25754206]
[1732076204427,0.054254,92053.0,92050.0,0.25754206]
[1732076204823,0.054254,92052.0,92050.0,0.25754206]
[1732076206335,0.054254,92052.0,92051.0,0.25754206]
[1732076206742,0.054254,92052.0,92051.0,0.32441326]
[1732076207441,0.054254,92052.0,92051.0,0.0668712]
[1732076216638,0.054254,92052.0,92050.0,0.25754206]
[1732076217044,0.0319,92051.0,92050.0,0.25754206]
[1732076218336,0.0319,92051.0,92046.0,0.0668712]
[1732076218649,0.054257,92048.0,92046.0,0.0668712]
[1732076219038,0.0319,92051.0,92044.0,0.00013654]
[1732076219039,0.054258,92045.0,92044.0,0.00013654]
[1732076221949,0.380178,92045.0,92044.0,0.00013654]
[1732076222363,0.39405432,92045.0,92044.0,0.00013654]
[1732076222846,0.46092552,92045.0,92044.0,0.00013654]
[1732076223733,0.46092552,92045.0,92044.0,1.737e-05]
[1732076223734,0.60667679,92045.0,92044.0,1.737e-05]
[1732076225052,0.67354799,92045.0,92044.0,1.737e-05]
[1732076225244,0.97354799,92045.0,92044.0,1.737e-05]
[1732076225556,0.90667679,92045.0,92044.0,1.737e-05]
[1732076226252,0.90694473,92045.0,92044.0,1.737e-05]
[1732076226443,0.7827521,92045.0,92044.0,1.737e-05]
[1732076227040,0.8496233,92045.0,92044.0,1.737e-05]
[1732076227239,0.7827521,92045.0,92044.0,1.737e-05]
[1732076227436,0.8496233,92045.0,92044.0,1.737e-05]
[1732076228256,0.8496233,92045.0,92034.0,0.0102]
[1732076228257,0.054263,92037.0,92036.0,0.00160684]
[1732076228456,0.6625654,92037.0,92036.0,0.00160684]
[1732076228662,0.9885254,92037.0,92036.0,0.00160684]
[1732076228850,0.1211402,92027.0,92026.0,0.0102]
[1732076229037,0.1211402,92027.0,92012.0,0.371]
[1732076229038,0.054277,92013.0,92012.0,0.371]
[1732076229239,0.054277,92013.0,92003.0,0.1637712]
[1732076229240,0.054281,92006.0,92003.0,0.0915]
[1732076229842,0.054281,92006.0,92004.0,0.0668712]
[1732076231856,0.054278,92012.0,92004.0,0.1211532]
[1732076232040,0.0668712,92017.0,92009.0,0.0668712]
[1732076232241,0.054279,92011.0,92005.0,0.054281]
[1732076232444,0.054279,92011.0,92010.0,0.0668712]
[1732076233049,0.054275,92018.0,92010.0,0.1211502]
[1732076233357,0.3608,92019.0,92017.0,0.054275]
[1732076233659,0.054269,92028.0,92018.0,0.0324]
[1732076233848,0.054269,92028.0,92026.0,0.0668712]
[1732076234155,0.054265,92035.0,92027.0,0.031]
[1732076234357,0.3608,92036.0,92031.0,0.0668712]
[1732076234358,0.054266,92032.0,92031.0,0.0668712]
[1732076236646,0.054268,92029.0,92027.0,0.0622]
[1732076236853,0.054271,92024.0,92022.0,0.01390138]
[1732076237247,0.054271,92024.0,92018.0,0.0324]
[1732076237248,0.10573588,92027.0,92018.0,0.0324]
[1732076237554,0.054273,92021.0,92018.0,0.0324]
[1732076238244,0.054273,92020.0,92018.0,0.0324]
[1732076240559,0.054273,92020.0,92018.0,0.0232]
[1732076242958,0.054273,92020.0,92010.0,0.0312]
[1732076242959,0.01426994,92022.0,92009.0,0.05428]
[1732076243163,0.054281,92007.0,92003.0,0.054283]
[1732076243662,0.054281,92007.0,92003.0,0.086983]
[1732076244356,0.054281,92007.0,92004.0,0.054282]
[1732076244951,0.054282,92006.0,92004.0,0.054282]
[1732076246250,0.054279,92010.0,92008.0,0.05428]
[1732076249555,0.054276,92016.0,92014.0,0.054277]
[1732076249767,0.3608,92019.0,92017.0,0.054275]
[1732076250066,0.054272,92023.0,92022.0,0.054272]
[1732076250469,0.37533061,92028.0,92025.0,0.05427]
[1732076250770,0.37533061,92028.0,92026.0,0.054269]
[1732076250771,0.00056001,92028.0,92026.0,0.054269]
[1732076251653,0.054265,92035.0,92025.0,0.25954532]
[1732076251854,0.054265,92035.0,92030.0,0.054267]
[1732076252652,0.054265,92035.0,92031.0,0.054266]
[1732076253070,0.37459489,92038.0,92028.0,0.10573588]
[1732076253071,0.3608,92038.0,92028.0,0.10573588]
[1732076253252,0.3608,92038.0,92035.0,0.10573588]
[1732076253459,0.3608,92047.0,92035.0,0.10573588]
[1732076253460,0.054257,92047.0,92044.0,0.054259]
[1732076253669,0.054254,92053.0,92044.0,0.054259]
[1732076254067,0.0309,92054.0,92044.0,0.054259]
[1732076254268,0.06798545,92051.0,92044.0,0.054259]
[1732076254759,0.06798545,92051.0,92044.0,0.06797964]
[1732076257368,0.0309,92054.0,92044.0,0.06797964]
[1732076257564,0.0309,92054.0,92044.0,0.42877964]
[1732076257869,0.054252,92056.0,92044.0,0.42877964]
[1732076258073,0.12745655,92071.0,92044.0,0.42877964]
[1732076258074,0.054248,92062.0,92044.0,0.42877964]
[1732076258259,0.0306,92065.0,92064.0,0.054247]
[1732076263778,0.02171099,92073.0,92069.0,0.054244]
[1732076263977,0.054241,92074.0,92069.0,0.054244]
[1732076264180,0.06840766,92074.0,92069.0,0.054244]
[1732076265283,0.054241,92074.0,92069.0,0.054244]
[1732076265890,0.054241,92074.0,92064.0,0.10573588]
[1732076265891,0.0634,92077.0,92064.0,0.10573588]
[1732076266089,0.0634,92077.0,92071.0,0.10573588]
[1732076266485,0.0634,92077.0,92075.0,0.054241]
[1732076266670,0.084438,92080.0,92076.0,0.05424]
[1732076266989,0.084438,92080.0,92071.0,0.10573588]
[1732076266990,0.00162969,92081.0,92079.0,0.054238]
[1732076271009,0.00162969,92081.0,92075.0,0.01415546]
[1732076271010,0.05424,92077.0,92075.0,0.06839546]
[1732076271303,0.05424,92077.0,92075.0,0.05424]
[1732076271907,0.05424,92077.0,92075.0,0.06833069]
[1732076272403,0.00162969,92081.0,92075.0,0.01409069]
[1732076272596,0.00162969,92081.0,92079.0,0.054238]
[1732076273905,0.00162969,92081.0,92076.0,0.10573588]
[1732076274105,0.054239,92077.0,92074.0,0.054241]
[1732076274304,0.054239,92077.0,92070.0,0.1273911]
[1732076274511,0.054239,92077.0,92075.0,0.05424]
[1732076279904,0.054239,92077.0,92069.0,0.21865588]
[1732076279905,0.054242,92074.0,92063.0,0.371]
[1732076280111,0.054242,92074.0,92063.0,0.47372]
[1732076280305,0.054243,92072.0,92067.0,0.054245]
[1732076281412,0.0307,92073.0,92063.0,0.48769318]
[1732076281602,0.054239,92078.0,92074.0,0.054241]
[1732076282515,0.37642807,92081.0,92074.0,0.054241]
[1732076283214,0.054245,92068.0,92065.0,0.054246]
[1732076283605,0.3608,92072.0,92063.0,0.37477318]
[1732076283802,0.3608,92072.0,92070.0,0.054243]
[1732076285013,0.37642807,92081.0,92069.0,0.10573588]
[1732076285223,0.054238,92080.0,92078.0,0.054239]
[1732076287322,0.37698808,92081.0,92069.0,0.10573588]
[1732076287508,0.054244,92071.0,92066.0,0.054246]
[1732076287710,0.054245,92068.0,92066.0,0.054246]
[1732076288116,0.37642807,92081.0,92063.0,0.37477318]
[1732076288424,0.37642807,92081.0,92075.0,0.05424]
[1732076288720,0.36242969,92081.0,92069.0,0.10573588]
[1732076288925,0.36242969,92081.0,92077.0,0.054239]
[1732076290121,0.36242969,92081.0,92078.0,0.054239]
[1732076290325,0.36242969,92081.0,92079.0,0.054238]
[1732076291515,0.054238,92080.0,92079.0,0.054238]
[1732076292821,0.054241,92075.0,92070.0,0.054244]
[1732076293016,0.054241,92075.0,92063.0,0.3608]
[1732076293221,0.054241,92075.0,92073.0,0.054242]
[1732076293517,0.054241,92075.0,92063.0,0.37464774]
[1732076293518,0.054238,92079.0,92064.0,0.054247]
[1732076293719,0.054238,92079.0,92075.0,0.05424]
[1732076294618,0.05424,92077.0,92075.0,0.05424]
[1732076296023,0.054243,92071.0,92069.0,0.054244]
[1732076296428,0.3608,92073.0,92063.0,0.3608]
[1732076296628,0.054247,92065.0,92063.0,0.3608]
[1732076300418,0.01407175,92070.0,92065.0,0.054246]
[1732076300624,0.054244,92069.0,92065.0,0.054246]
[1732076301527,0.063,92072.0,92065.0,0.054246]
[1732076301840,0.054245,92068.0,92065.0,0.054246]
[1732076302127,0.063,92072.0,92067.0,0.054245]
[1732076302337,0.07722407,92072.0,92067.0,0.054245]
[1732076302724,0.07722407,92072.0,92063.0,0.3608]
[1732076303033,0.054244,92069.0,92064.0,0.054247]
[1732076303436,0.054244,92069.0,92065.0,0.054246]
[1732076304139,0.3608,92073.0,92063.0,0.3608]
[1732076304345,0.3608,92073.0,92071.0,0.054243]
[1732076305728,0.054239,92078.0,92077.0,0.054239]
[1732076309831,0.054239,92078.0,92077.0,0.06799542]
[1732076312935,0.054239,92078.0,92077.0,0.054239]
[1732076319129,0.36242969,92081.0,92069.0,0.054244]
[1732076320454,0.054242,92072.0,92069.0,0.054244]
[1732076321245,0.054242,92072.0,92066.0,0.01421319]
[1732076321246,0.054244,92070.0,92066.0,0.01421319]
[1732076321446,0.054244,92070.0,92065.0,0.25954532]
[1732076321746,0.054244,92070.0,92065.0,0.31379132]
[1732076321955,0.054244,92070.0,92066.0,0.054246]
[1732076322647,0.054244,92070.0,92067.0,0.054245]
[1732076324635,0.054246,92066.0,92064.0,0.25954532]
[1732076324839,0.054248,92063.0,92061.0,0.25954532]
[1732076325050,0.054248,92063.0,92059.0,0.05425]
[1732076326639,0.054248,92063.0,92061.0,0.054249]
[1732076327349,0.0306,92069.0,92057.0,0.12688319]
[1732076327549,0.054245,92068.0,92063.0,0.054247]
[1732076327742,0.0306,92069.0,92060.0,0.10573588]
[1732076327939,0.3608,92071.0,92069.0,0.054244]
[1732076328152,0.36136001,92071.0,92069.0,0.054244]
[1732076328451,0.3608,92071.0,92069.0,0.054244]
[1732076329147,0.054241,92075.0,92068.0,0.10573588]
[1732076329348,0.054239,92079.0,92068.0,0.10573588]
[1732076329540,0.054239,92079.0,92077.0,0.054239]
[1732076332244,0.04815499,92081.0,92070.0,0.1126]
[1732076332245,0.054241,92074.0,92072.0,0.054242]
[1732076332450,0.054238,92080.0,92071.0,0.054243]
[1732076332652,0.054239,92079.0,92076.0,0.05424]
[1732076333570,0.00056001,92094.0,92080.0,0.054238]
[1732076333857,0.3608,92095.0,92093.0,0.05423]
[1732076334053,0.054227,92099.0,92081.0,0.47312]
[1732076334054,0.054223,92105.0,92094.0,0.46653588]
[1732076334257,0.054223,92105.0,92102.0,0.15996088]
[1732076334490,0.054223,92105.0,92103.0,0.054224]
[1732076334844,0.3608,92106.0,92105.0,0.054223]
[1732076335052,0.3586,92106.0,92105.0,0.054223]
[1732076337159,0.0004,92110.0,92109.0,0.054221]
[1732076337346,0.0004,92110.0,92109.0,0.15995688]
[1732076341059,0.0004,92110.0,92105.0,0.362]
[1732076341242,0.054222,92107.0,92103.0,0.166504]
[1732076341443,0.054222,92107.0,92105.0,0.054223]
[1732076341656,0.0004,92110.0,92105.0,0.054223]
[1732076343057,0.054221,92109.0,92105.0,0.054223]
[1732076344464,0.0004,92110.0,92108.0,0.054221]
[1732076345553,0.054218,92114.0,92103.0,0.11228]
[1732076345752,0.054218,92114.0,92111.0,0.054219]
[1732076346857,0.054218,92114.0,92112.0,0.054219]
[1732076347755,0.049218,92114.0,92112.0,0.054219]
[1732076347955,0.054219,92113.0,92107.0,0.054221]
[1732076348153,0.054219,92113.0,92108.0,0.054221]
[1732076348368,0.0309,92112.0,92109.0,0.05422]
[1732076348569,0.0309,92112.0,92103.0,0.11228]
[1732076348864,0.0309,92112.0,92110.0,0.05422]
[1732076349763,0.054219,92113.0,92111.0,0.054219]
[1732076349973,0.054219,92113.0,92102.0,0.10689588]
[1732076349974,0.00218902,92138.0,92131.0,0.054208]
[1732076350160,0.00222902,92138.0,92131.0,0.054208]
[1732076350464,0.00162901,92138.0,92131.0,0.054208]
[1732076350669,0.00162901,92138.0,92137.0,0.054204]
[1732076350869,0.00162901,92138.0,92137.0,0.15993988]
[1732076351367,0.414994,92155.0,92138.0,0.054203]
[1732076351569,0.414994,92155.0,92154.0,0.10573588]
[1732076351769,0.414994,92155.0,92153.0,0.10573588]
[1732076352264,0.3608,92155.0,92153.0,0.10573588]
[1732076352472,0.3608,92155.0,92153.0,0.054195]
[1732076353466,0.3608,92155.0,92149.0,0.054197]
[1732076353851,0.3608,92155.0,92146.0,0.10573588]
[1732076354057,0.3608,92155.0,92150.0,0.054196]
[1732076354466,0.3608,92155.0,92151.0,0.054196]
[1732076356571,0.3608,92155.0,92146.0,0.10573588]
[1732076356769,0.054196,92152.0,92146.0,0.10573588]
[1732076357477,0.3608,92155.0,92146.0,0.10573588]
[1732076357771,0.3608,92155.0,92154.0,0.054194]
[1732076358081,0.0304,92156.0,92154.0,0.054194]
[1732076359975,0.00059,92157.0,92156.0,0.054193]
[1732076360374,0.00059,92157.0,92156.0,0.166433]
[1732076361473,0.00059,92157.0,92156.0,0.527233]
[1732076363773,0.054185,92170.0,92166.0,0.054187]
[1732076363982,0.054186,92169.0,92166.0,0.054187]
[1732076364181,0.054182,92174.0,92158.0,0.054191]
[1732076364370,0.0634,92176.0,92163.0,0.11188]
[1732076364563,0.054187,92167.0,92163.0,0.11188]
[1732076366273,0.054187,92167.0,92162.0,0.054189]
[1732076366875,0.054187,92167.0,92163.0,0.054189]
[1732076367071,0.054183,92174.0,92164.0,0.054188]
[1732076367262,0.054183,92173.0,92164.0,0.054188]
[1732076367876,0.054183,92173.0,92162.0,0.10573588]
[1732076368075,0.054183,92173.0,92166.0,0.054187]
[1732076368274,0.0634,92176.0,92166.0,0.054187]
[1732076368480,0.054184,92172.0,92166.0,0.054187]
[1732076369778,0.0634,92176.0,92169.0,0.054185]
[1732076369779,0.0318,92176.0,92169.0,0.054185]
[1732076370376,0.054184,92172.0,92163.0,0.054189]
[1732076370886,0.3608,92169.0,92164.0,0.054188]
[1732076371970,0.3608,92169.0,92165.0,0.054187]
[1732076372873,0.054188,92165.0,92161.0,0.11188]
[1732076373882,0.054188,92165.0,92160.0,0.05419]
[1732076376283,0.0326,92168.0,92163.0,0.054188]
[1732076376491,0.0326,92168.0,92166.0,0.054187]
[1732076378082,0.3608,92169.0,92168.0,0.054186]
[1732076381684,0.3608,92169.0,92168.0,0.00628478]
[1732076381986,0.3608,92169.0,92166.0,0.01366173]
[1732076382288,0.3608,92169.0,92162.0,0.10573588]
[1732076382492,0.3608,92169.0,92162.0,0.11995972]
[1732076382893,0.3608,92169.0,92168.0,0.054186]
[1732076384882,0.50719537,92169.0,92168.0,0.054186]
[1732076385280,0.3608,92169.0,92168.0,0.054186]
[1732076385483,0.50724713,92169.0,92168.0,0.054186]
[1732076387485,0.3608,92169.0,92168.0,0.054186]
[1732076388891,0.50742903,92169.0,92168.0,0.054186]
[1732076389093,0.3608,92169.0,92168.0,0.054186]
[1732076389293,0.00041824,92170.0,92168.0,0.054186]
[1732076389589,0.14670252,92169.0,92168.0,0.054186]
[1732076390383,0.054188,92165.0,92162.0,0.054189]
[1732076390692,0.054188,92165.0,92163.0,0.054189]
[1732076390892,0.14697064,92164.0,92163.0,0.054189]
[1732076391193,0.054188,92165.0,92163.0,0.054189]
[1732076399296,0.054188,92165.0,92163.0,0.31197826]
[1732076399485,0.054188,92165.0,92163.0,0.054189]
[1732076399889,0.39406001,92169.0,92163.0,0.054189]
[1732076400099,0.14620031,92168.0,92163.0,0.054189]
[1732076400397,0.14620031,92167.0,92163.0,0.054189]
[1732076400696,0.39406001,92169.0,92163.0,0.054189]
[1732076400891,0.14619981,92168.0,92163.0,0.054189]
[1732076401103,0.14619981,92167.0,92163.0,0.054189]
[1732076401300,0.3935,92169.0,92158.0,0.12551867]
[1732076401489,0.3935,92169.0,92164.0,0.054188]
[1732076401490,0.14593443,92168.0,92164.0,0.054188]
[1732076401797,0.3935,92169.0,92164.0,0.054188]
[1732076402019,0.3935,92169.0,92158.0,0.12551867]
[1732076402020,0.3935,92169.0,92160.0,0.05419]
[1732076402499,0.3935,92169.0,92161.0,0.05419]
[1732076402903,0.3935,92169.0,92163.0,0.054189]
[1732076403207,0.3935,92169.0,92167.0,0.054186]
[1732076405704,0.0327,92169.0,92167.0,0.054186]
[1732076410808,0.3608,92168.0,92167.0,0.054186]
[1732076415202,0.3608,92168.0,92167.0,0.12090095]
[1732076415402,0.00041824,92170.0,92169.0,0.054185]
[1732076416119,0.36144,92187.0,92175.0,0.054182]
[1732076416319,0.00226826,92196.0,92186.0,0.06671495]
[1732076416518,0.00162826,92196.0,92192.0,0.06671495]
[1732076417104,0.01537223,92196.0,92192.0,0.06671495]
[1732076417416,0.00162826,92196.0,92192.0,0.06671495]
[1732076417924,0.00162826,92196.0,92195.0,0.05417]
[1732076418419,0.11420555,92200.0,92199.0,0.054168]
[1732076419211,0.47500555,92200.0,92199.0,0.054168]
[1732076424122,0.47500555,92200.0,92199.0,0.15949871]
[1732076425216,0.11420555,92200.0,92199.0,0.15949871]
[1732076425516,0.11420555,92200.0,92199.0,0.48489871]
[1732076425909,0.11420555,92200.0,92199.0,0.15949871]
[1732076426425,0.11420555,92200.0,92199.0,0.27057871]
[1732076431833,0.11420555,92200.0,92199.0,0.27053871]
[1732076434227,0.11420555,92200.0,92199.0,0.054168]
[1732076440826,0.11420555,92200.0,92199.0,0.1208396]
[1732076445229,0.054168,92199.0,92197.0,0.0666716]
[1732076446129,0.054168,92199.0,92197.0,0.1208406]
[1732076449146,0.054168,92199.0,92197.0,0.0666716]
[1732076452846,0.054168,92198.0,92197.0,0.0666716]
[1732076456350,0.054168,92198.0,92197.0,0.1208406]
[1732076456536,0.11420555,92200.0,92198.0,0.054168]
[1732076460245,0.16837255,92200.0,92198.0,0.054168]
[1732076461743,0.054168,92199.0,92198.0,0.054168]
[1732076463750,0.054168,92198.0,92197.0,0.0666716]
[1732076464548,0.11420555,92200.0,92197.0,0.0666716]
[1732076464750,0.11420555,92200.0,92199.0,0.054168]
[1732076470639,0.11420555,92200.0,92197.0,0.08043036]
[1732076470846,0.054168,92199.0,92198.0,0.054168]
[1732076471041,0.11420555,92200.0,92198.0,0.054168]
[1732076471647,0.11420555,92200.0,92198.0,0.085068]
[1732076474964,0.11420555,92200.0,92199.0,0.0666716]
[1732076477868,0.3608,92214.0,92199.0,0.3920716]
[1732076478056,0.15453684,92210.0,92209.0,0.1208336]
[1732076478267,0.15453684,92210.0,92209.0,0.0666716]
[1732076478472,0.36136001,92214.0,92209.0,0.1208336]
[1732076478765,0.00056001,92214.0,92210.0,0.0666716]
[1732076478964,0.31464712,92222.0,92210.0,0.0666716]
[1732076479155,0.26049212,92222.0,92210.0,0.01523177]
[1732076479355,0.054159,92215.0,92210.0,0.1773116]
[1732076479967,0.054159,92214.0,92210.0,0.1773116]
[1732076480167,0.0995716,92222.0,92210.0,0.12452953]
[1732076480472,0.05416,92213.0,92210.0,0.19120113]
[1732076480768,0.05416,92213.0,92210.0,0.08056113]
[1732076480977,0.054161,92212.0,92210.0,0.01388953]
[1732076481154,0.054161,92212.0,92209.0,0.0666716]
[1732076481356,0.054161,92212.0,92210.0,0.054161]
[1732076484169,0.3608,92213.0,92210.0,0.054161]
[1732076488883,0.3608,92213.0,92210.0,0.1208326]
[1732076491270,0.3608,92213.0,92210.0,0.054161]
[1732076491475,0.3608,92213.0,92210.0,0.1208326]
[1732076491775,0.41496,92213.0,92210.0,0.1208326]
[1732076491971,0.05472001,92213.0,92210.0,0.1208326]
[1732076492173,0.3608,92215.0,92210.0,0.1208326]
[1732076498688,0.054156,92219.0,92210.0,0.1208326]
[1732076499571,0.0329,92222.0,92210.0,0.4816326]
[1732076499887,0.087054,92222.0,92210.0,0.67440752]
[1732076500183,0.054155,92221.0,92210.0,0.4816326]
[1732076500384,0.054155,92220.0,92210.0,0.4816326]